Cogmind - Beta 13 @@@ ROGUE MODE // 2024.06.01 @ 12:09:36 Player: Kat Result: Self-destructed Performance ------------- Evolutions (1) 500 Regions Visited (3) 600 Robots Destroyed (46) 230 Value Destroyed (1247) 1247 Prototype IDs (2) 40 Alien Tech Used (0) 0 Bonus (87) 87 TOTAL SCORE: 2704 Bonus ------- Follower Combat Kills 87 Cogmind --------- Core Integrity 195/400 Matter 235/300 Energy 33/100 System Corruption 3% Temperature Cool (0) Movement Flying (195) Ox2 Location -9/Storage Parts ------- > --- POWER (1) -------- (None) > --- PROPULSION (2) --- VTOL Module > --- UTILITY (3) ------ Medium Storage Unit Weight Redist. System > --- WEAPON (3) ------- EM Pulse Cannon EM Pulse Cannon EM Pulse Cannon > --- INVENTORY (10) --- VTOL Module VTOL Module Transport Network Coupler EM Pulse Cannon Improved Assault Rifle Enhanced Autogun Enhanced Autogun Peak State ------------ > --- POWER ------------ Improved Ion Engine > --- PROPULSION ------- Armored Wheel Armored Wheel > --- UTILITY ---------- Medium Storage Unit Weight Redist. System Sensor Array > --- WEAPON ----------- Enhanced Autogun Enhanced Autogun Datajack > --- INVENTORY -------- Armored Wheel Armored Wheel ECM Suite Heavy EM Pulse Gun EM Pulse Cannon EM Pulse Cannon EM Pulse Cannon EM Pulse Cannon Enhanced Autogun Improved Light Cannon [Rating: 21] Favorites ----------- Power Improved Ion Engine Engine Improved Ion Engine Propulsion Aluminum Leg Treads Light Treads Leg Aluminum Leg Wheel Armored Wheel Hover Unit Improved Hover Unit Flight Unit VTOL Module Utility Medium Storage Unit Device Sensor Array Storage Medium Storage Unit Weapon Improved Light Cannon Energy Gun Medium Laser Energy Cannon EM Pulse Cannon Ballistic Gun Enhanced Autogun Ballistic Cannon Improved Light Cannon Special Melee Weapon Datajack Build | -11 -10 -9 -9 ------- Run | Yrd Mat Mat Sto Slots Evolved 2 | . . 2 . Power . | . . . . Propulsion . | . . . . Utility 1 | . . 1 . Weapon 1 | . . 1 . Parts Attached 42 | 9 13 14 6 Power 3 | 1 2 . . Engine 3 | 1 2 . . Core . | . . . . Reactor . | . . . . Propulsion 11 | 2 5 4 . Treads 2 | 2 . . . Leg 3 | . 3 . . Wheel 2 | . . 2 . Hover 2 | . 2 . . Flight 2 | . . 2 . Utility 11 | 2 4 4 1 Device 8 | 1 2 4 1 Storage 3 | 1 2 . . Processor . | . . . . Hackware . | . . . . Protection . | . . . . Artifact . | . . . . Weapon 17 | 4 2 6 5 Energy Gun 3 | 3 . . . Energy Cannon 3 | . . . 3 Ballistic Gun 5 | 1 . 2 2 Ballistic Cannon 4 | . 2 2 . Launcher . | . . . . Special Weapon . | . . . . Impact Weapon . | . . . . Slashing Weapon . | . . . . Piercing Weapon . | . . . . Special Melee Weapon 2 | . . 2 . Unidentified Prototypes 2 | . . 1 1 Parts Lost 8 | . 2 2 4 Power 1 | . . . 1 Propulsion 3 | . 2 . 1 Utility 1 | . . 1 . Weapon 3 | . . 1 2 Highest Loss Streak 4 | . 2 1 4 To Critical Strikes . | . . . . Average Slot Usage (%) 95 | . 96 94 89 Engine 12 | . 13 11 8 Treads 2 | . 3 . . Leg 10 | . 14 5 . Wheel 4 | . . 15 . Hover 4 | . 7 . . Flight 2 | . . . 20 Device 12 | . 10 14 19 Storage 16 | . 17 16 11 Energy Gun 2 | . 4 . . Ballistic Gun 6 | . . 16 21 Ballistic Cannon 16 | . 23 4 . Special Melee Weapon 3 | . . 11 7 Naked Turns . | . . . . Heaviest Build 30 | 15 28 30 26 Greatest Support 40 | 40 40 30 14 Greatest Overweight (x) 8 | . 8 8 1 Average Overweight (x) 1 | . 1 1 1 Largest Inventory Capacity 10 | 8 10 10 10 Average Capacity 9 | 7 9 10 10 Most Carried 10 | 5 10 10 10 Average Carried 7 | 1 7 8 8 Final Capacity 10 | 8 10 10 10 Final Carried 9 | 1 9 8 7 Class Distribution -------------------- 94% | Mutant 5% | Scavenger-Mutant Dominant Class ---------------- Mutant | -10/Materials Mutant | -9/Materials Mutant | -9/Storage Resources | -11 -10 -9 -9 ----------- Run | Yrd Mat Mat Sto Matter Collected 1458 | 235 661 357 205 Remotely . | . . . . Salvage Created 1589 | 69 548 626 346 Parts 102 | 9 30 43 20 Haulers Intercepted 4 | . 1 3 . Recyclers Shooed 2 | . 2 . . Parts Field Recycled . | . . . . Retrieved Matter . | . . . . Parts Self-Destructed . | . . . . Prevented . | . . . . Kills | -11 -10 -9 -9 ------- Run | Yrd Mat Mat Sto Combat Hostiles Destroyed 30 | . 12 10 8 Guns 19 | . 1 10 8 Cannons 10 | . 10 . . Classes Destroyed 10 | 1 6 1 2 Worker 1 | . 1 . . Tunneler 3 | 3 . . . Hauler 4 | . 1 3 . Recycler 2 | . 2 . . Operator 2 | . 1 1 . Watcher 4 | . 2 2 . Grunt 24 | . 12 7 5 Brawler 1 | . . . 1 Protector 2 | . . . 2 Sentry 3 | . . 3 . Best Kill Streak 6 | 2 5 6 6 Combat Bots Only 6 | . 3 3 6 Max Kills in Single Turn 2 | 1 1 2 2 Gunslinging 1 | . . 1 1 Exploded . | . . . . Melee . | . . . . Uniques/NPCs Destroyed . | . . . . Combat | -11 -10 -9 -9 -------- Run | Yrd Mat Mat Sto Hostile Shots Fired 174 | . 63 32 79 Missed 50 | . 15 11 24 Damage Taken 1591 | . 611 254 726 Core 346 | . 141 57 148 Absorbed by Shields . | . . . . Regen/Repaired (Parts) 318 | . 75 243 . Core Remaining (%) 71 | 100 43 . . Volleys Fired 134 | 8 51 41 34 Largest 2 | 2 2 2 2 Hottest 100 | 100 100 78 46 Shots Fired 267 | 16 102 82 67 Gun 181 | 16 18 80 67 Cannon 86 | . 84 2 . Launcher . | . . . . Special . | . . . . Kinetic 233 | . 84 82 67 Thermal 34 | 16 18 . . Explosive . | . . . . Electromagnetic . | . . . . Robot Hit Streak 12 | 6 12 8 9 Robot Miss Streak 8 | 2 3 8 3 Penetration Max . | . . . . Secondary Targets 7 | . 1 3 3 Max Gunslinging Chain 1 | . 1 1 1 Shots Hit Robots 165 | 11 67 49 38 Core Hits 66 | 3 23 22 18 Critical Kills . | . . . . Critical Parts Destroyed . | . . . . Critical Strikes 6 | 1 4 1 . Burn 2 | 1 1 . . Blast 4 | . 3 1 . Melee Attacks 2 | . . 2 . Impact . | . . . . Slashing . | . . . . Piercing . | . . . . Sneak Attacks 2 | . . 2 . Combat Hostiles . | . . . . Follow-up Attacks . | . . . . Damage Inflicted 2850 | 139 1299 859 553 Guns 1669 | 139 136 841 553 Cannons 1181 | . 1163 18 . Explosions . | . . . . Melee . | . . . . Ramming . | . . . . Kinetic 2575 | . 1163 859 553 Thermal 275 | 139 136 . . Explosive . | . . . . Electromagnetic . | . . . . Impact . | . . . . Slashing . | . . . . Piercing . | . . . . Highest Corruption 3 | . . 1 3 Average Corruption 1 | . . 1 1 Corruption Purged . | . . . . Corruption Blocked . | . . . . Effects 5 | . . 1 4 Matter Fused 2 | . . 1 1 Energy Discharges 1 | . . . 1 Parts Rejected 1 | . . . 1 Data Loss (minor) 1 | . . . 1 Overload Shots . | . . . . Overflow Damage 21 | . 21 . . Projectiles 21 | . 21 . . Explosions . | . . . . Melee . | . . . . Knockbacks 20 | . 20 . . Impact . | . . . . Kinetic 20 | . 20 . . Secondary . | . . . . Self-Inflicted Damage . | . . . . Shots . | . . . . Rammed . | . . . . Targets Rammed . | . . . . Kicked . | . . . . Crushed . | . . . . Highest Temperature 323 | 217 323 54 35 Average Temperature 78 | 89 110 14 11 Received Heat Transfer 858 | . 336 138 384 Effects 3 | . 3 . . Energy Bleed 1 | . 1 . . Interference 2 | . 2 . . Siege Activations . | . . . . Robots Corrupted . | . . . . Combat Hostiles . | . . . . Parts Fried . | . . . . Impact Corruptions . | . . . . Robots Melted 1 | . 1 . . Combat Hostiles 1 | . 1 . . Parts Melted 1 | . 1 . . Heat Transferred 962 | 481 481 . . Parts Sabotaged . | . . . . Parts Stolen . | . . . . Parts Stripped . | . . . . Power Chain Reactions . | . . . . Alert | -11 -10 -9 -9 ------- Run | Yrd Mat Mat Sto Peak Influence 239 | 15 207 163 239 Initial 68 | . 9 . 68 Average 63 | 5 69 35 127 Maximum Alert Level 1 | . 1 . 1 Low Security (%) 98 | 100 98 100 85 Level 1 1 | . 1 . 14 Level 2 . | . . . . Level 3 . | . . . . Level 4 . | . . . . Level 5 . | . . . . High Security . | . . . . Max Security . | . . . . Squads Dispatched 9 | . 4 2 3 Investigation 4 | . 3 1 . Extermination . | . . . . Reinforcement 3 | . 1 1 1 Assault 2 | . . . 2 Garrison . | . . . . Intercept . | . . . . Searches Triggered . | . . . . Construction Impeded . | . . . . Haulers Reinforced . | . . . . Active Scanning Responses . | . . . . Cargo Convoy Interrupts . | . . . . Stealth | -11 -10 -9 -9 --------- Run | Yrd Mat Mat Sto Distress Signals 4 | . . 4 . Communications Jammed . | . . . . Distress Signals . | . . . . Times Spotted 57 | . 16 21 20 Peak Tracking Total 11 | . 3 5 11 Tactical Retreats 4 | . 1 2 1 Traps | -11 -10 -9 -9 ------- Run | Yrd Mat Mat Sto Traps Triggered 2 | . 2 . . Indirectly . | . . . . Trap Hack Attempts . | . . . . Triggered . | . . . . Disarmed . | . . . . Reprogrammed . | . . . . Reused . | . . . . Traps Extracted . | . . . . Installed . | . . . . Triggered . | . . . . Machines | -11 -10 -9 -9 ---------- Run | Yrd Mat Mat Sto Machines Disabled 2 | . 1 . 1 Max in Single Turn 1 | . 1 . . Garrison Access 1 | . . . 1 Machines Repaired . | . . . . Machines Dismantled . | . . . . Machines Sabotaged . | . . . . Overloaded Fab Kills . | . . . . Hacking | -11 -10 -9 -9 --------- Run | Yrd Mat Mat Sto Machines Accessed 8 | . 4 2 2 Terminals 5 | . 3 1 1 Fabricators . | . . . . Repair Stations 2 | . 1 1 . Recycling Units . | . . . . Scanalyzers . | . . . . Garrison Access 1 | . . . 1 Total Hacks 23 | . 11 8 4 Successful 17 | . 7 6 4 Failed 6 | . 4 2 . Catastrophic 1 | . 1 . . Database Lockouts . | . . . . Manual . | . . . . Terminals 9 | . 4 3 2 Fabricators . | . . . . Repair Stations 12 | . 7 5 . Recycling Units . | . . . . Scanalyzers . | . . . . Garrison Access 2 | . . . 2 Terminal Hacks 6 | . 2 2 2 Emergency Access Points 1 | . . 1 . Alert Level 2 | . . 1 1 Locate Traps 1 | . 1 . . Surveillance Status 1 | . 1 . . Zone Layout 1 | . . . 1 Fabricator Hacks . | . . . . Repair Station Hacks 9 | . 5 4 . Scan Component 5 | . 3 2 . Repair 4 | . 2 2 . Recycling Unit Hacks . | . . . . Scanalyzer . | . . . . Garrison Access Hacks 2 | . . . 2 Seal Access 1 | . . . 1 Coupler Status 1 | . . . 1 Unauthorized Hacks . | . . . . Terminals . | . . . . Fabricators . | . . . . Repair Stations . | . . . . Recycling Units . | . . . . Scanalyzers . | . . . . Garrison Access . | . . . . Data Cores Recovered 1 | . . 1 . Used . | . . . . Hacking Detections 4 | . 3 1 . Full Trace Events 3 | . 2 1 . Feedback Events 1 | . . 1 . Corruption 1 | . . 1 . Feedback Blocked . | . . . . Robot Schematics Acquired . | . . . . Robots Built . | . . . . Authchips . | . . . . Time . | . . . . Total Robot Build Rating . | . . . . Part Schematics Acquired . | . . . . Parts Built . | . . . . Authchips . | . . . . Time . | . . . . Total Part Build Rating . | . . . . Parts Repaired 4 | . 2 2 . Time 122 | . 58 64 . Parts Recycled . | . . . . Recycled Matter . | . . . . Retrieved Matter . | . . . . Retrieved Components . | . . . . Parts Scanalyzed . | . . . . Part Schematics Acquired . | . . . . Parts Damaged . | . . . . Bothacking | -11 -10 -9 -9 ------------ Run | Yrd Mat Mat Sto Used RIF Installer . | . . . . Robots Hacked 2 | . . 2 . Non-combat 2 | . . 2 . Combat . | . . . . Robot Hacks Applied 2 | . . 2 . parse_system 1 | . . 1 . find_station 1 | . . 1 . Relay Couplers Released . | . . . . Fabnet Peak Effective % . | . . . . Robots Rewired . | . . . . Allies Hacked . | . . . . Hacks Repelled . | . . . . Allies | -11 -10 -9 -9 -------- Run | Yrd Mat Mat Sto Total Allies 2 | . . . 2 Largest Group 2 | . . . 2 Highest-Rated Group 62 | . . . 62 Highest-Rated Ally 31 | . . . 31 Total Orders . | . . . . Ally Attacks 16 | . . . 16 Total Damage 252 | . . . 252 Kills 3 | . . . 3 Allies Corrupted 1 | . . . 1 Allies Melted . | . . . . Intel | -11 -10 -9 -9 ------- Run | Yrd Mat Mat Sto Robot Analysis Total . | . . . . Derelict Logs Recovered . | . . . . Drone Launches . | . . . . Drone Recoveries . | . . . . Exploration | -11 -10 -9 -9 ------------- Run | Yrd Mat Mat Sto Turns Passed 2359 | 88 1444 614 213 Spaces Moved 1128 | 42 671 325 90 Core 30 | 19 6 5 . Treads 108 | 23 85 . . Legs 390 | . 358 32 . Wheels 278 | . . 278 . Hover 222 | . 222 . . Flight 100 | . . 10 90 Fastest Speed 50 | 50 116 90 112 Average Speed 148 | 110 169 119 112 Slowest Speed 515 | 160 450 515 115 Overloaded Moves . | . . . . Propulsion Burnouts . | . . . . Robots Hopped . | . . . . Cave-ins Triggered . | . . . . Exploration Rate (%) 32 | 3 85 25 18 Regions Visited 3 Branch Regions 1 Pre-discovered Areas . | . . . . Known Exits Taken . | . . . . Unknown Exits Taken 3 | 1 1 1 . Scrap Searched . | . . . . Spaces Dug . | . . . . Terrain Destroyed 5 | . 5 . . Melee . | . . . . Projectile 5 | . 5 . . AOE . | . . . . Terrain Rammed . | . . . . Walls Destroyed . | . . . . Machines Disabled . | . . . . Actions | -11 -10 -9 -9 --------- Run | Yrd Mat Mat Sto Total 1592 | 68 882 507 135 Wait 196 | . 112 84 . Move 1125 | 41 670 324 90 Hop . | . . . . Pick Up 52 | 8 21 21 2 Fast Attach 4 | 2 . 2 . Attach 34 | 7 11 12 4 Detach 10 | . 6 2 2 Swap 5 | . 2 1 2 Drop 30 | 2 9 18 1 Fire 134 | 8 51 41 34 Melee 2 | . . 2 . Ram . | . . . . Kick . | . . . . Crush . | . . . . Escape Stasis . | . . . . Rewire . | . . . . Trap . | . . . . Miscellaneous . | . . . . Route ------- -11/Scrapyard -10/Materials (discovered 3 exits: *Mat x2 / [*Min]) -9/Materials -9/Storage History --------- Turn | Location | Event 5 | -11/Scrapyard | Discovered new exit (range 14) 89 | -11/Scrapyard | Entered Materials 322 | -10/Materials | Build established: Mutant 508 | -10/Materials | Discovered new exit (range 12) 841 | -10/Materials | Core integrity fell below 50% 843 | -10/Materials | Discovered new exit (range 11) 1113 | -10/Materials | Repaired Sensor Array 1147 | -10/Materials | Repaired Imp. Ion Engine 1152 | -10/Materials | Discovered new exit (range 12) 1533 | -10/Materials | Entered another Materials area 1533 | -9/Materials | Evolved 2 slots: Utility x1, Weapon x1 1585 | -9/Materials | Repaired Imp. Light Cannon 1619 | -9/Materials | Repaired Imp. Light Cannon 2065 | -9/Materials | Discovered new exit (range 5) 2147 | -9/Materials | Entered Storage 2175 | -9/Storage | Met a pair of Derelict thieves 2355 | -9/Storage | Core integrity fell below 50% 2360 | -9/Storage | Self-destructed Last Messages --------------- M-13 Machinist repairs G-47 Trooper. B-36 Bruiser destroyed. Imp. Ion Engine destroyed. Critical hit (Burn: +37). G-34 Mercenary destroyed. Switching to secondary target: Y-45 Defender. VTOL Module destroyed. G-47 Trooper destroyed. K-01 Serf collects debris. M-13 Machinist repairs Y-45 Defender. Acquired 104 matter. Acquired 26 matter. I-25 Savior destroyed. Switching to secondary target: G-34 Mercenary. G-34 Mercenary destroyed. Acquired 28 matter. System corrupted: Component data lost. K-01 Serf collects debris. Imp. Assault Rifle destroyed. K-01 Serf collects debris. Map ----- +----------------------------------------------------+ | ???????????????????????????????????????????????? | | ???????????????????????????????????????????????? | | ???????????????????????????????????????????????? | | ???????????????????????????????????????????????? | | ???????????????????????????????????????????????? | | ???????????????????????????????????????????????? | | ????????????????? ???????????????????????????? | | ???????????????? ???????????????????????????? | | ????????????????# ???????????????????????????? | | ????????????????# ???????????????????????????? | | ????????????????# ???????????????????????????? | | ????????????????# ???????????????????????????? | | ???????????????## #??????????????????????????? | | ??????????????? T??????????????????????????? | | ???????????????? #??????????????????????????? | | ???????????????? #??????????????????????????? | | ????????????????# % #??????????????????????????? | | ????????????????# #??????????????????????????? | | ?????# # # ###########????????????????? | | ?????# # # # % #????????????????? | | ?????# # # # % #????????????????? | | ?????# # # [/# %"""""" #????????????????? | | ?????# # # *#% " ???" #????????????????? | | ?????# # #[%=+% " ???" #????????????????? | | ?????# ^+ # !!#Yg"""""" #????????????????? | | ???### # # # l@ *! #????????????????? | | ???#"" # # r g =* #????????????????? | | ???#"Y # # ###########????????????????? | | ???#"" # # #######????????????????????? | | ???### # # # #?????????????????? | | ?????# # # # """ #?????????????????? | | ??#### #####+## # """ #?????????????????? | | ??#""" "#??# # """ #?????????????????? | | ??#"G T#??# + !#?????????????????? | | ??#""" "#??# # """ #?????????????????? | | ??#### ##??# + """ #?????????????????? | | ?????# ##### # """ #?????????????????? | | ?????# # ??????????????????? | | ?????# #########+###########?????????????????? | | ?????# #????#### ##???????????????????????? | | ?????#####????###T ##???????????????????????? | | ??????????????####" "###???????????????????????? | | ??????????????## !##???????????????????????? | | ??????????????##]] ##???????????????????????? | | ??????????????## ] [##???????????????????????? | | ??????????????##] [ [##???????????????????????? | | ??????????????##########???????????????????????? | | ??????????????##########???????????????????????? | | ???????????????????????????????????????????????? | | ???????????????????????????????????????????????? | +----------------------------------------------------+ Best States ------------- Heat Dissipation 28 Energy Generation 12 Energy Capacity 265 Matter Stores 450 Matter Capacity 450 Sight Range 16 Robot Scan Range 14 Terrain Scan Density 10 ECM Strength 1 Additional Mass Support 6 Evasion (%) 50 Recoil Reduction 2 Item Schematics ----------------- None Robot Schematics ------------------ None Fabricated ------------ Nothing Alien Tech Used ----------------- None Achievements -------------- Universal Adapter Challenges ------------ None Game ------ Seed MobileClaymoresMultitool Manual? 0 Play Time 00:35:46 Cumulative 4.7 hours Start 2024.06.01 @ 11:35:29 End 2024.06.01 @ 12:09:36 Sessions 1 Manual Loads 0 Difficulty Rogue Special Mode None Game No. 11 Rogue 11 Adventurer 0 Explorer 0 Win Type - Total 0 Types 0/0/0/0/0/0/0/0/0 Lore% 2 Gallery% 10 Achievement% 8 Wizard Run 0 Options --------- Layout 1 ASCII 0 Keyboard 0 Movement Mouse Keybinds 0 Fullscreen 2 Font 24/Terminus Map View 50x35 Zoom Use 0% Tactical HUD 0 Map Filters NONE Filters NONE Steam 1 RUN: 235e4e60-4e56-41ef-9a81-08f9d92e23ca